bitfinex/quotes_BTCUSD_20251015
["timestamp","ask_amount","ask_price","bid_price","bid_amount"]
[1760502997058,0.17840249,112470.0,112460.0,0.001]
[1760502999368,0.17840249,112470.0,112450.0,0.17784996]
[1760502999597,0.17785682,112450.0,112440.0,0.18676627]
[1760502999768,0.17784101,112460.0,112440.0,0.18676627]
[1760503000834,0.17784101,112460.0,112450.0,0.17785682]
[1760503001664,0.17784101,112460.0,112440.0,0.18676627]
[1760503003092,0.17785682,112450.0,112430.0,0.18683267]
[1760503003258,0.17785682,112450.0,112440.0,0.17787264]
[1760503003455,0.17785682,112450.0,112440.0,0.001]
[1760503003664,0.17785682,112450.0,112440.0,0.17887264]
[1760503003867,0.17785682,112450.0,112440.0,0.17787264]
[1760503004073,0.19666654,112450.0,112440.0,0.17787264]
[1760503004571,0.19666654,112450.0,112430.0,0.18683267]
[1760503004699,0.19571737,112450.0,112430.0,0.18683267]
[1760503004900,0.19402796,112450.0,112430.0,0.18683267]
[1760503005739,0.17521824,112450.0,112440.0,0.17787264]
[1760503006312,0.17521824,112450.0,112430.0,0.18683267]
[1760503006513,0.17787264,112440.0,112430.0,4.979e-05]
[1760503007897,0.17787264,112440.0,112430.0,0.00104979]
[1760503008431,0.17787264,112440.0,112430.0,4.979e-05]
[1760503010558,0.94570222,112440.0,112430.0,4.979e-05]
[1760503014210,0.95965141,112440.0,112430.0,4.979e-05]
[1760503015363,1.28529203,112440.0,112430.0,4.979e-05]
[1760503015770,0.90855693,112440.0,112430.0,4.979e-05]
[1760503016448,0.39624588,112450.0,112430.0,0.55467335]
[1760503016639,0.9141038,112450.0,112440.0,0.17787264]
[1760503017322,0.5373687,112450.0,112430.0,0.55467335]
[1760503017520,0.9141038,112450.0,112430.0,0.17793825]
[1760503017824,0.20068121,112460.0,112450.0,0.17785682]
[1760503018031,0.20068121,112460.0,112440.0,0.17787264]
[1760503018032,0.17785682,112450.0,112430.0,0.56356777]
[1760503018248,0.55459192,112450.0,112430.0,0.18683267]
[1760503018461,0.55460774,112440.0,112430.0,0.17793825]
[1760503018906,0.89460774,112440.0,112430.0,4.979e-05]
[1760503019562,0.22011831,112460.0,112440.0,0.17787264]
[1760503019813,0.17784183,112460.0,112440.0,0.17787264]
[1760503020225,0.17784183,112460.0,112450.0,0.17785682]
[1760503020671,0.17784183,112460.0,112440.0,0.17787264]
[1760503020886,0.51784183,112460.0,112450.0,0.17785682]
[1760503021102,0.51784101,112460.0,112450.0,0.17785682]
[1760503021343,0.51784101,112460.0,112440.0,0.17787264]
[1760503021522,0.51784101,112460.0,112450.0,0.01778568]
[1760503021806,0.34,112460.0,112450.0,0.1956425]
[1760503022047,0.34,112460.0,112450.0,0.17785682]
[1760503022241,0.51784101,112460.0,112450.0,0.17785682]
[1760503022385,0.51784101,112460.0,112440.0,0.17787264]
[1760503022726,0.17785682,112450.0,112430.0,0.18683267]
[1760503023137,0.17787264,112440.0,112430.0,4.979e-05]
[1760503023541,0.60586178,112440.0,112430.0,4.979e-05]
[1760503023855,0.94586178,112440.0,112430.0,4.979e-05]
[1760503024230,0.51787264,112440.0,112430.0,4.979e-05]
[1760503026908,0.94586178,112440.0,112430.0,4.979e-05]
[1760503028901,0.34,112440.0,112430.0,0.17793825]
[1760503029111,0.19180383,112450.0,112430.0,0.19572709]
[1760503029282,0.19180383,112450.0,112430.0,0.17793825]
[1760503029725,0.51785682,112450.0,112440.0,0.1956599]
[1760503029909,0.51785682,112450.0,112430.0,0.17793825]
[1760503030173,0.51785682,112450.0,112440.0,0.1956599]
[1760503030342,0.51785682,112450.0,112440.0,0.17787264]
[1760503030585,0.17785682,112450.0,112440.0,0.17787264]
[1760503030765,0.17787264,112440.0,112430.0,0.34004979]
[1760503031491,0.17787264,112440.0,112430.0,4.979e-05]
[1760503031697,0.60586178,112440.0,112430.0,4.979e-05]
[1760503033795,0.17787264,112440.0,112430.0,4.979e-05]
[1760503033946,0.60586178,112440.0,112430.0,4.979e-05]
[1760503035167,0.97648177,112440.0,112430.0,4.979e-05]
[1760503038623,0.54849263,112440.0,112430.0,4.979e-05]
[1760503038822,0.97648177,112440.0,112430.0,4.979e-05]
[1760503039022,0.54849263,112440.0,112430.0,4.979e-05]
[1760503039342,0.97648177,112440.0,112430.0,4.979e-05]
[1760503039936,0.54849263,112440.0,112430.0,4.979e-05]
[1760503040163,0.97648177,112440.0,112430.0,4.979e-05]
[1760503040781,0.54849263,112440.0,112430.0,4.979e-05]
[1760503041007,0.97648177,112440.0,112430.0,4.979e-05]
[1760503041619,0.9625302,112440.0,112430.0,4.979e-05]
[1760503043389,1.19235925,112440.0,112430.0,4.979e-05]
[1760503046296,1.04849267,112440.0,112430.0,4.979e-05]
[1760503047735,0.70849267,112440.0,112430.0,4.979e-05]
[1760503047968,0.69182425,112440.0,112430.0,4.979e-05]
[1760503049112,0.5,112440.0,112430.0,0.19572709]
[1760503049339,0.67787264,112440.0,112430.0,0.17793825]
[1760503049569,0.5,112440.0,112430.0,0.17793825]
[1760503051379,0.17786231,112450.0,112430.0,0.17893825]
[1760503052030,0.17786231,112450.0,112440.0,0.17787264]
[1760503053334,0.17786231,112450.0,112430.0,0.17893825]
[1760503053548,0.17786231,112450.0,112430.0,0.17793825]
[1760503054467,0.17787264,112440.0,112430.0,0.17793825]
[1760503055656,0.17786231,112450.0,112430.0,0.17793825]
[1760503056562,0.17786231,112450.0,112440.0,0.17787264]
[1760503057024,0.34,112460.0,112440.0,0.17787264]
[1760503057153,0.51784101,112460.0,112440.0,0.17787264]
[1760503057559,0.51784101,112460.0,112450.0,0.1956425]
[1760503057770,0.17785682,112450.0,112430.0,0.17793825]
[1760503057986,0.17787264,112440.0,112430.0,4.979e-05]
[1760503058579,0.17785682,112450.0,112430.0,0.17793825]
[1760503058797,0.17787264,112440.0,112430.0,0.17793825]
[1760503059823,0.17785682,112450.0,112430.0,0.17793825]
[1760503060158,0.17785682,112450.0,112440.0,0.17787264]
[1760503060565,0.52673516,112460.0,112450.0,0.17785682]
[1760503060802,0.52673516,112460.0,112440.0,0.17787264]
[1760503061013,0.05017237,112470.0,112460.0,0.17784101]
[1760503061209,0.19235311,112470.0,112450.0,0.17785682]
[1760503061464,0.53235311,112470.0,112450.0,0.17785682]
[1760503061643,0.17840249,112470.0,112460.0,0.19562511]
[1760503061816,0.17840249,112470.0,112460.0,0.17784101]
[1760503064643,0.0005773,112470.0,112460.0,0.17784101]
[1760503070548,0.0005773,112470.0,112460.0,0.17884101]
[1760503070745,0.51441663,112490.0,112460.0,0.17884101]
[1760503071071,0.18035799,112480.0,112470.0,0.01778251]
[1760503071274,0.17781389,112480.0,112470.0,0.01778251]
[1760503071655,0.17839111,112480.0,112470.0,0.01778251]
[1760503072027,0.17786321,112450.0,112420.0,0.0839094]
[1760503072198,0.17786321,112450.0,112430.0,0.1956773]
[1760503072377,0.17786321,112450.0,112430.0,0.17788846]
[1760503072821,0.17787264,112440.0,112430.0,0.17788846]
[1760503072996,0.1257347,112450.0,112420.0,0.19010488]
[1760503073197,0.17787264,112440.0,112420.0,0.19010488]
[1760503074189,0.17787264,112440.0,112420.0,0.18121438]
[1760503074397,0.17787264,112440.0,112420.0,0.18121616]
[1760503074603,0.17787264,112440.0,112430.0,0.17788846]
[1760503075653,0.13462754,112450.0,112430.0,0.17788846]
[1760503075860,0.0025441,112440.0,112430.0,0.17788846]
[1760503076288,0.18041674,112440.0,112430.0,0.17788846]
[1760503076546,0.17787264,112440.0,112430.0,0.17788846]
[1760503076737,0.13462754,112450.0,112430.0,0.17788846]
[1760503076950,0.13717164,112450.0,112430.0,0.17788846]
[1760503078384,0.0025441,112450.0,112440.0,0.17787264]
[1760503078599,0.91631402,112470.0,112450.0,0.17785682]
[1760503078600,0.25847087,112470.0,112450.0,0.17785682]
[1760503079061,0.52671877,112470.0,112450.0,0.17785682]
[1760503079424,0.18671877,112470.0,112450.0,0.17785682]
[1760503079752,0.17784101,112460.0,112450.0,0.17785682]
[1760503080493,0.20514578,112480.0,112460.0,0.17784101]
[1760503080777,0.54514578,112480.0,112460.0,0.17784101]
[1760503080999,0.20514578,112480.0,112460.0,0.17784101]
[1760503081291,0.51839111,112480.0,112460.0,0.17784101]
[1760503081843,0.17782519,112470.0,112460.0,0.17784101]
[1760503082048,0.17782519,112470.0,112450.0,0.17785682]
[1760503082248,0.17782519,112470.0,112440.0,0.17787264]
[1760503082249,0.18038511,112460.0,112440.0,0.17787264]
[1760503082447,0.17784101,112460.0,112440.0,0.17792243]
[1760503083649,0.18040092,112450.0,112440.0,4.979e-05]
[1760503083978,0.17785682,112450.0,112440.0,0.17792243]
[1760503084145,0.19179039,112460.0,112440.0,0.17792243]
[1760503084353,0.53179039,112460.0,112440.0,0.17792243]
[1760503084749,0.53179039,112460.0,112450.0,0.17785682]
[1760503085125,0.51784101,112460.0,112450.0,0.17785682]
[1760503085776,0.87128899,112470.0,112450.0,0.17785682]
[1760503086068,0.52671644,112470.0,112450.0,0.17785682]
[1760503086990,0.17784101,112460.0,112450.0,0.17785682]
[1760503087231,0.52671644,112470.0,112450.0,0.17785682]
[1760503087670,0.17784101,112460.0,112450.0,0.17785682]
[1760503087934,0.17784101,112460.0,112440.0,0.17792243]
[1760503088368,0.17784101,112460.0,112450.0,0.17785682]
[1760503091433,0.17784101,112460.0,112440.0,0.17792243]
[1760503091640,0.0025441,112450.0,112440.0,0.17792243]
[1760503094596,0.18040092,112450.0,112440.0,4.979e-05]
[1760503094799,0.17785682,112450.0,112440.0,4.979e-05]
[1760503095008,1.17567501,112450.0,112440.0,4.979e-05]
[1760503096898,1.20243392,112450.0,112440.0,4.979e-05]
[1760503098296,0.54461573,112450.0,112440.0,4.979e-05]
[1760503098497,0.51785682,112450.0,112440.0,0.17792243]
[1760503098715,0.51785682,112450.0,112440.0,4.979e-05]
[1760503100068,0.17785682,112450.0,112440.0,4.979e-05]
[1760503100255,1.17567501,112450.0,112440.0,4.979e-05]
[1760503101336,1.24525366,112450.0,112440.0,4.979e-05]
[1760503101778,1.17567501,112450.0,112440.0,4.979e-05]
[1760503102351,1.19233984,112450.0,112440.0,4.979e-05]
[1760503105074,1.21910009,112450.0,112440.0,4.979e-05]
[1760503105509,0.98937501,112450.0,112440.0,4.979e-05]
[1760503107953,1.48937501,112450.0,112440.0,4.979e-05]
[1760503109193,1.55604162,112450.0,112440.0,4.979e-05]
[1760503110137,1.56436715,112450.0,112440.0,4.979e-05]
[1760503110306,2.02864254,112450.0,112440.0,4.979e-05]
[1760503110727,2.02864196,112450.0,112440.0,4.979e-05]
[1760503111691,2.02964196,112450.0,112440.0,4.979e-05]
[1760503112115,2.0478231,112450.0,112440.0,4.979e-05]
[1760503112636,2.0488231,112450.0,112440.0,4.979e-05]
[1760503113876,1.62072999,112450.0,112440.0,4.979e-05]
[1760503114292,1.17265257,112450.0,112440.0,4.979e-05]
[1760503114516,1.16432762,112450.0,112440.0,4.979e-05]
[1760503114712,0.71956968,112450.0,112440.0,4.979e-05]
[1760503115110,1.05956968,112450.0,112440.0,4.979e-05]
[1760503115310,0.71856968,112450.0,112440.0,4.979e-05]
[1760503115608,1.03180943,112450.0,112440.0,4.979e-05]
[1760503117527,1.54865276,112450.0,112440.0,4.979e-05]
[1760503117659,1.47655238,112450.0,112440.0,4.979e-05]
[1760503119125,1.03180943,112450.0,112440.0,4.979e-05]
[1760503119328,1.03180943,112450.0,112440.0,0.17792243]
[1760503119532,0.69180943,112450.0,112440.0,4.979e-05]
[1760503120236,0.48589029,112450.0,112440.0,4.979e-05]
[1760503120465,0.95990254,112450.0,112440.0,4.979e-05]
[1760503120941,0.96260745,112450.0,112440.0,4.979e-05]
[1760503121441,0.97271004,112450.0,112440.0,4.979e-05]
[1760503121992,0.54461693,112450.0,112440.0,4.979e-05]
[1760503122177,0.97271004,112450.0,112440.0,4.979e-05]
[1760503122724,0.98937398,112450.0,112440.0,4.979e-05]
[1760503124145,1.00332526,112450.0,112440.0,4.979e-05]
[1760503124298,1.09300734,112450.0,112440.0,4.979e-05]
[1760503124472,1.10134276,112450.0,112440.0,4.979e-05]
[1760503124671,1.01166068,112450.0,112440.0,4.979e-05]
[1760503125684,1.01266068,112450.0,112440.0,4.979e-05]
[1760503126092,1.01166068,112450.0,112440.0,4.979e-05]
[1760503126504,1.01266068,112450.0,112440.0,4.979e-05]
[1760503126908,0.58456757,112450.0,112440.0,4.979e-05]
[1760503127167,1.01266068,112450.0,112440.0,4.979e-05]
[1760503128475,1.01166068,112450.0,112440.0,4.979e-05]
[1760503129116,1.00332526,112450.0,112440.0,4.979e-05]
[1760503131065,0.98937398,112450.0,112440.0,4.979e-05]
[1760503132781,1.48937398,112450.0,112440.0,4.979e-05]
[1760503134360,1.50332553,112450.0,112440.0,4.979e-05]
[1760503135421,1.45191362,112450.0,112440.0,4.979e-05]
[1760503137175,1.82859482,112450.0,112440.0,4.979e-05]
[1760503137566,1.9182769,112450.0,112440.0,4.979e-05]
[1760503137821,1.92661569,112450.0,112440.0,4.979e-05]
[1760503137986,1.83693361,112450.0,112440.0,4.979e-05]
[1760503138585,1.46025238,112450.0,112440.0,4.979e-05]
[1760503138721,1.45191362,112450.0,112440.0,4.979e-05]
[1760503139465,1.43524968,112450.0,112440.0,4.979e-05]
[1760503139668,1.06848957,112450.0,112440.0,4.979e-05]
[1760503139829,0.69180837,112450.0,112440.0,4.979e-05]
[1760503140223,1.06848957,112450.0,112440.0,4.979e-05]
[1760503142029,1.05453802,112450.0,112440.0,4.979e-05]
[1760503144914,0.67785682,112450.0,112440.0,4.979e-05]
[1760503145111,0.69180681,112450.0,112440.0,4.979e-05]
[1760503145460,1.06848801,112450.0,112440.0,4.979e-05]
[1760503146018,1.40848801,112450.0,112440.0,4.979e-05]
[1760503146233,1.80185438,112450.0,112440.0,4.979e-05]
[1760503146558,1.83695761,112450.0,112440.0,4.979e-05]
[1760503147507,1.89236316,112450.0,112440.0,4.979e-05]
[1760503148153,1.89236558,112450.0,112440.0,4.979e-05]
[1760503149132,1.89336558,112450.0,112440.0,4.979e-05]
[1760503150439,1.98304766,112450.0,112440.0,4.979e-05]
[1760503151039,2.35972886,112450.0,112440.0,4.979e-05]
[1760503152285,1.98304766,112450.0,112440.0,4.979e-05]
[1760503152804,1.96909767,112450.0,112440.0,4.979e-05]
[1760503153733,2.34577887,112450.0,112440.0,4.979e-05]
[1760503154720,2.74642855,112450.0,112440.0,4.979e-05]
[1760503155044,2.36974735,112450.0,112440.0,4.979e-05]
[1760503155438,2.74642855,112450.0,112440.0,4.979e-05]
[1760503155615,3.14486364,112450.0,112440.0,4.979e-05]
[1760503155840,3.1588178,112450.0,112440.0,4.979e-05]
[1760503156247,3.16771143,112450.0,112440.0,4.979e-05]
[1760503157067,2.29298701,112450.0,112440.0,4.979e-05]
[1760503157481,2.30387985,112450.0,112440.0,4.979e-05]
[1760503157677,2.27991137,112450.0,112440.0,4.979e-05]
[1760503159050,2.27791137,112450.0,112440.0,4.979e-05]
[1760503159261,2.27891137,112450.0,112440.0,4.979e-05]
[1760503159484,1.13997493,112450.0,112440.0,4.979e-05]
[1760503159705,0.74456938,112450.0,112440.0,4.979e-05]
[1760503159966,0.71957149,112450.0,112440.0,4.979e-05]
[1760503160183,1.05957149,112450.0,112440.0,4.979e-05]
[1760503160400,1.04461733,112450.0,112440.0,4.979e-05]
[1760503160642,0.52676051,112450.0,112440.0,4.979e-05]
[1760503160841,0.67885682,112450.0,112440.0,4.979e-05]
[1760503161052,0.67885682,112450.0,112440.0,0.17792243]
[1760503161469,0.751,112450.0,112440.0,0.17792243]
[1760503161889,0.92885682,112450.0,112440.0,0.17792243]
[1760503162094,0.751,112450.0,112440.0,0.17792243]
[1760503162299,0.751,112450.0,112440.0,0.55460363]
[1760503162504,0.75,112450.0,112440.0,0.93128483]
[1760503163481,0.75,112450.0,112440.0,0.60567178]
[1760503163924,0.75,112450.0,112440.0,0.62251297]
[1760503165568,0.75,112450.0,112440.0,0.85191295]
[1760503165850,0.75,112450.0,112440.0,0.85291295]
[1760503166217,0.75,112450.0,112440.0,0.85191295]
[1760503166753,0.75,112450.0,112440.0,0.85291295]
[1760503168001,0.75,112450.0,112440.0,0.83607176]
[1760503168195,0.75,112450.0,112440.0,0.17892243]
[1760503168868,0.75,112450.0,112440.0,0.17792243]
[1760503169077,0.75,112450.0,112440.0,4.979e-05]
[1760503169272,0.92785682,112450.0,112440.0,0.00104979]
[1760503170236,0.42785682,112450.0,112440.0,4.979e-05]
[1760503170535,0.44539222,112450.0,112440.0,4.979e-05]
[1760503170933,0.42785682,112450.0,112440.0,4.979e-05]
[1760503171340,0.42785682,112450.0,112440.0,0.17792243]
[1760503171547,0.25,112450.0,112440.0,0.17792243]
[1760503173330,0.42785682,112450.0,112440.0,0.17792243]
[1760503175907,0.25,112450.0,112440.0,0.17792243]
[1760503176480,0.25,112450.0,112440.0,0.83507176]
[1760503178208,0.25,112450.0,112440.0,0.17892243]
[1760503179464,0.25,112450.0,112440.0,0.83607176]
[1760503180101,0.25,112450.0,112440.0,0.83507176]
[1760503180533,0.25,112450.0,112440.0,0.83607176]
[1760503183592,0.25,112450.0,112440.0,0.17892243]
[1760503183931,0.42785682,112450.0,112440.0,0.17892243]
[1760503184383,0.25,112450.0,112440.0,0.17892243]
[1760503184582,0.42785682,112450.0,112440.0,0.17892243]
[1760503184986,0.42785682,112450.0,112440.0,0.17792243]
[1760503185939,0.42785682,112450.0,112440.0,4.979e-05]
[1760503186331,1.08500615,112450.0,112440.0,4.979e-05]
[1760503186769,1.18863772,112450.0,112440.0,4.979e-05]
[1760503187013,1.51468823,112450.0,112440.0,4.979e-05]
[1760503187212,1.52863939,112450.0,112440.0,4.979e-05]
[1760503187546,1.45558917,112450.0,112440.0,4.979e-05]
[1760503188293,0.80675975,112450.0,112440.0,4.979e-05]
[1760503188491,0.79843984,112450.0,112440.0,4.979e-05]
[1760503189306,1.46391517,112450.0,112440.0,4.979e-05]
[1760503191218,1.45658917,112450.0,112440.0,4.979e-05]
[1760503191523,1.44263801,112450.0,112440.0,4.979e-05]
[1760503193468,1.46939862,112450.0,112440.0,4.979e-05]
[1760503194242,1.48335024,112450.0,112440.0,4.979e-05]
[1760503194891,0.82620091,112450.0,112440.0,4.979e-05]
[1760503195213,1.48335024,112450.0,112440.0,4.979e-05]
[1760503196421,1.2646668,112450.0,112440.0,4.979e-05]
[1760503197915,1.30916759,112450.0,112440.0,4.979e-05]
[1760503199013,1.32833069,112450.0,112440.0,4.979e-05]
[1760503199625,1.82833069,112450.0,112440.0,4.979e-05]
[1760503202103,1.81437907,112450.0,112440.0,4.979e-05]
[1760503205709,1.82833281,112450.0,112440.0,4.979e-05]
[1760503205941,1.91801489,112450.0,112440.0,4.979e-05]
[1760503206486,1.82833281,112450.0,112440.0,4.979e-05]
[1760503206742,1.43298743,112450.0,112440.0,4.979e-05]
[1760503206977,1.42466892,112450.0,112440.0,4.979e-05]
[1760503207211,1.4608512,112450.0,112440.0,4.979e-05]
[1760503207438,1.8008512,112450.0,112440.0,4.979e-05]
[1760503207660,1.59167782,112450.0,112440.0,4.979e-05]
[1760503207882,1.76953464,112450.0,112440.0,4.979e-05]
[1760503208100,1.84539586,112450.0,112440.0,4.979e-05]
[1760503208319,1.77783883,112450.0,112440.0,4.979e-05]
[1760503210105,1.76388509,112450.0,112440.0,4.979e-05]
[1760503210601,1.76389168,112450.0,112440.0,4.979e-05]
[1760503211805,1.77784374,112450.0,112440.0,4.979e-05]
[1760503212200,1.07620135,112450.0,112440.0,4.979e-05]
[1760503212442,1.08451935,112450.0,112440.0,4.979e-05]
[1760503212622,1.07620135,112450.0,112440.0,4.979e-05]
[1760503213046,1.73335068,112450.0,112440.0,4.979e-05]
[1760503213249,1.74066929,112450.0,112440.0,4.979e-05]
[1760503214632,1.78171781,112450.0,112440.0,4.979e-05]
[1760503215282,1.74066929,112450.0,112440.0,4.979e-05]
[1760503215431,1.75986348,112450.0,112440.0,4.979e-05]
[1760503215832,1.76086348,112450.0,112440.0,4.979e-05]
[1760503216082,1.74166929,112450.0,112440.0,4.979e-05]
[1760503217703,1.76087079,112450.0,112440.0,4.979e-05]
[1760503217949,1.88673515,112450.0,112440.0,4.979e-05]
[1760503220965,1.10372146,112450.0,112440.0,4.979e-05]
[1760503221116,1.0705679,112450.0,112440.0,4.979e-05]
[1760503222873,1.0695679,112450.0,112440.0,4.979e-05]
[1760503223261,1.06224929,112450.0,112440.0,4.979e-05]
[1760503224281,1.07620054,112450.0,112440.0,4.979e-05]
[1760503225455,1.07620054,112450.0,112440.0,0.17792243]
[1760503225456,0.71956868,112450.0,112440.0,0.17792243]
[1760503225673,0.69280807,112450.0,112440.0,0.17792243]
[1760503225879,0.51495125,112450.0,112440.0,0.17792243]
[1760503226343,0.69180807,112450.0,112440.0,0.17792243]
[1760503228225,0.51395125,112450.0,112440.0,0.17792243]
[1760503228410,0.69180807,112450.0,112440.0,0.17792243]
[1760503230277,0.69180807,112450.0,112440.0,4.979e-05]
[1760503231094,0.69180807,112450.0,112440.0,0.17792243]
[1760503233487,0.69180807,112450.0,112440.0,4.979e-05]
[1760503233890,0.67785682,112450.0,112440.0,4.979e-05]
[1760503234760,1.44572415,112450.0,112440.0,4.979e-05]
[1760503235459,1.46237767,112450.0,112440.0,4.979e-05]
[1760503235822,1.47070537,112450.0,112440.0,4.979e-05]
[1760503236026,1.50574377,112450.0,112440.0,4.979e-05]
[1760503236293,1.54192605,112450.0,112440.0,4.979e-05]
[1760503236496,1.98898518,112450.0,112440.0,4.979e-05]
[1760503236688,2.00293821,112450.0,112440.0,4.979e-05]
[1760503236891,1.58396372,112450.0,112440.0,4.979e-05]
[1760503237023,2.01183105,112450.0,112440.0,4.979e-05]
[1760503237445,1.57507088,112450.0,112440.0,4.979e-05]
[1760503237920,1.57607088,112450.0,112440.0,4.979e-05]
[1760503239888,1.57507088,112450.0,112440.0,4.979e-05]
[1760503240348,1.57607088,112450.0,112440.0,4.979e-05]
[1760503240485,1.14820355,112450.0,112440.0,4.979e-05]
[1760503240742,1.57607031,112450.0,112440.0,4.979e-05]
[1760503242287,1.56211728,112450.0,112440.0,4.979e-05]
[1760503243904,1.58888195,112450.0,112440.0,4.979e-05]
[1760503245256,1.60283507,112450.0,112440.0,4.979e-05]
[1760503245466,1.90941772,112450.0,112440.0,4.979e-05]
[1760503246077,1.87437932,112450.0,112440.0,4.979e-05]
[1760503251065,1.8604262,112450.0,112440.0,4.979e-05]
[1760503253872,1.65087259,112450.0,112440.0,4.979e-05]
[1760503254209,1.87437868,112450.0,112440.0,4.979e-05]
[1760503256158,0.17790428,112420.0,112400.0,0.01509062]
[1760503256369,0.17793594,112400.0,112390.0,0.0717521]
[1760503256671,0.55475683,112400.0,112390.0,0.0717521]
[1760503256799,0.55475683,112400.0,112380.0,0.19576251]
[1760503256800,0.17795177,112390.0,112380.0,0.17796575]
[1760503257201,0.55477266,112390.0,112380.0,0.17796575]
[1760503257478,0.17795177,112390.0,112380.0,0.17796575]
[1760503260175,1.10945567,112400.0,112380.0,0.17796575]
[1760503260354,1.09548122,112400.0,112390.0,0.17795177]
[1760503260741,0.54072439,112400.0,112390.0,0.17795177]
[1760503261015,0.51395545,112400.0,112390.0,0.17795177]
[1760503261217,0.5,112400.0,112390.0,0.17795177]
[1760503261854,0.5,112400.0,112390.0,0.55477266]
[1760503262418,0.5,112400.0,112390.0,0.17795177]
[1760503262626,0.5,112400.0,112380.0,0.55478664]
[1760503262809,0.67794051,112400.0,112380.0,0.55478664]
[1760503263612,0.67794051,112400.0,112390.0,0.17795177]
[1760503264476,0.67794021,112400.0,112390.0,0.17795177]
[1760503265100,0.67794021,112400.0,112390.0,0.17895177]
[1760503266758,0.17794051,112400.0,112390.0,0.17895177]
[1760503267105,0.17794051,112400.0,112390.0,0.18068525]
[1760503268246,0.17794051,112400.0,112390.0,0.00273348]
[1760503268621,0.17794051,112400.0,112390.0,0.18068525]
[1760503268979,0.17794051,112400.0,112390.0,0.19848042]
[1760503269181,0.17794051,112400.0,112390.0,0.18068525]
[1760503269479,1.09040617,112410.0,112400.0,0.17793594]
[1760503269480,0.52676703,112410.0,112400.0,0.17793594]
[1760503269683,0.67792011,112410.0,112390.0,0.55577266]
[1760503269921,0.67792011,112410.0,112400.0,0.01779359]
[1760503270683,1.054741,112410.0,112390.0,0.55577266]
[1760503270887,1.054741,112410.0,112390.0,0.55477266]
[1760503271098,0.17793594,112400.0,112390.0,0.55477266]
[1760503271503,0.67792011,112410.0,112390.0,0.55477266]
[1760503271911,0.67792011,112410.0,112400.0,0.17793594]
[1760503272135,0.67792011,112410.0,112400.0,0.19572953]
[1760503272334,0.67792011,112410.0,112400.0,0.17793594]
[1760503272545,0.554741,112410.0,112400.0,0.17793594]
[1760503272979,0.554741,112410.0,112390.0,0.55477266]
[1760503273247,0.17792011,112410.0,112390.0,0.55477266]
[1760503274115,0.17792011,112410.0,112400.0,0.17793594]
[1760503274291,0.17792011,112410.0,112400.0,0.19572953]
[1760503274489,0.17792011,112410.0,112400.0,0.55475683]
[1760503274838,0.17792011,112410.0,112400.0,0.17909149]
[1760503275169,0.17792011,112410.0,112400.0,0.00115555]
[1760503275551,0.17792011,112410.0,112400.0,0.17909149]
[1760503276513,0.554741,112410.0,112400.0,0.00115555]
[1760503276951,0.5686952,112410.0,112400.0,0.00115555]
[1760503278183,0.9086952,112410.0,112400.0,0.00115555]
[1760503278532,0.93546216,112410.0,112400.0,0.00115555]
[1760503279669,0.95215164,112410.0,112400.0,0.00115555]
[1760503280242,0.93819744,112410.0,112400.0,0.00115555]
[1760503280441,1.02787952,112410.0,112400.0,0.00115555]
[1760503280865,0.93819744,112410.0,112400.0,0.00115555]
[1760503283372,0.95215336,112410.0,112400.0,0.00115555]
[1760503289095,0.21864299,112410.0,112400.0,0.17909149]
[1760503289302,0.21864299,112410.0,112400.0,0.00115555]
[1760503289702,0.55864299,112410.0,112400.0,0.00115555]
[1760503290503,0.21864299,112410.0,112400.0,0.01894914]
[1760503290702,0.21864299,112410.0,112400.0,0.00115555]
[1760503292452,0.20468707,112410.0,112400.0,0.00115555]
[1760503292891,0.20468707,112410.0,112400.0,0.01820305]
[1760503295657,0.21864119,112410.0,112400.0,0.01820305]
[1760503296091,0.21964119,112410.0,112400.0,0.01820305]
[1760503297261,0.001,112410.0,112400.0,0.57297484]
[1760503297397,0.001,112410.0,112400.0,0.55592734]
[1760503298287,0.001,112410.0,112400.0,0.56915351]
[1760503298487,0.001,112410.0,112400.0,0.57015351]
[1760503298926,4.983e-05,112420.0,112410.0,0.17792011]
[1760503299087,4.983e-05,112420.0,112410.0,0.55475596]
[1760503299318,4.983e-05,112420.0,112410.0,0.55533368]
[1760503300098,4.983e-05,112420.0,112410.0,0.17849783]
[1760503300526,4.983e-05,112420.0,112410.0,0.17949783]
[1760503301659,4.983e-05,112420.0,112410.0,0.55633368]
[1760503305264,4.983e-05,112420.0,112410.0,0.93316953]
[1760503305647,4.983e-05,112420.0,112410.0,1.04516953]
[1760503306361,4.983e-05,112420.0,112410.0,0.66833368]
[1760503306768,4.983e-05,112420.0,112410.0,1.04516953]
[1760503311146,4.983e-05,112420.0,112410.0,1.42135181]
[1760503311981,4.983e-05,112420.0,112410.0,1.4481045]
[1760503312598,4.983e-05,112420.0,112410.0,1.4491045]
[1760503312804,4.983e-05,112420.0,112410.0,1.53879462]
[1760503313099,4.983e-05,112420.0,112410.0,1.53779462]
[1760503313474,4.983e-05,112420.0,112410.0,1.53979462]
[1760503313668,4.983e-05,112420.0,112410.0,1.42679462]
[1760503313869,4.983e-05,112420.0,112410.0,0.5834328]
[1760503314195,4.983e-05,112420.0,112410.0,1.4470645]
[1760503314390,4.983e-05,112420.0,112410.0,1.3371045]
[1760503314545,4.983e-05,112420.0,112410.0,1.4490645]
[1760503315171,4.983e-05,112420.0,112410.0,1.4500645]
[1760503315581,4.983e-05,112420.0,112410.0,1.4678945]
[1760503317301,4.983e-05,112420.0,112410.0,1.3559345]
[1760503317678,4.983e-05,112420.0,112410.0,1.4678945]
[1760503318465,4.983e-05,112420.0,112410.0,1.3559345]
[1760503318664,4.983e-05,112420.0,112410.0,1.4678945]
[1760503319306,4.983e-05,112420.0,112410.0,1.3559345]
[1760503319626,4.983e-05,112420.0,112410.0,1.4678945]
[1760503320310,4.983e-05,112420.0,112410.0,1.3559345]
[1760503320518,4.983e-05,112420.0,112410.0,1.4678945]
[1760503320727,4.983e-05,112420.0,112410.0,1.44562462]
[1760503320938,4.983e-05,112420.0,112410.0,1.82246047]
[1760503321344,4.983e-05,112420.0,112410.0,2.00091328]
[1760503321782,4.983e-05,112420.0,112410.0,1.62407743]
[1760503323690,0.25283876,112470.0,112460.0,0.17784101]
[1760503323691,0.10364737,112470.0,112460.0,0.17784101]
[1760503323919,0.17554925,112470.0,112460.0,0.17784101]
[1760503324135,0.10379715,112470.0,112460.0,0.17784101]
[1760503326068,0.00904103,112470.0,112460.0,0.17784101]
[1760503326346,0.01004103,112470.0,112460.0,0.17784101]
[1760503326609,0.00114978,112470.0,112460.0,0.17784101]
[1760503327698,0.17797497,112470.0,112460.0,0.17784101]
[1760503327939,0.17797497,112470.0,112430.0,0.17785849]
[1760503327940,0.17784101,112460.0,112430.0,0.17785849]
[1760503328141,0.55467686,112460.0,112440.0,0.19565932]
[1760503328357,0.55467686,112460.0,112440.0,0.17787206]
[1760503328581,0.17784101,112460.0,112450.0,0.17785682]
[1760503328801,0.55467686,112460.0,112450.0,0.17785682]
[1760503329238,0.17784101,112460.0,112450.0,0.17785682]
[1760503331027,0.17784101,112460.0,112440.0,0.17787206]
[1760503331460,0.17785682,112450.0,112430.0,0.82808876]
[1760503331679,0.17785682,112450.0,112440.0,0.17787264]
[1760503332116,0.19127341,112450.0,112440.0,0.17787264]
[1760503332975,0.17785682,112450.0,112440.0,0.17787264]
[1760503334243,0.59032257,112460.0,112440.0,0.17787264]
[1760503334439,0.60698294,112460.0,112440.0,0.17787264]
[1760503335588,0.23014709,112460.0,112450.0,0.01778568]
[1760503336196,0.23114709,112460.0,112440.0,0.17787264]